fUSD/lending_fUSD_20260506
["ID","MTS","AMOUNT","RATE_DAILY","PERIOD"]
[421670549,1778035883000,-151.0,0.00042454,120]
[421670526,1778035883000,-1235.18214925,0.00042454,60]
[421670556,1778035883000,-164.0,0.00042466,120]
[421670557,1778035883000,-530.0,0.00042466,120]
[421670559,1778035883000,-506.1040413,0.00042466,120]
[421670560,1778035883000,-224.5540391,0.00042466,90]
[421670558,1778035883000,-1053.8959587,0.00042466,120]
[421670554,1778035883000,-10000.0,0.00042465,120]
[421670553,1778035883000,-10000.0,0.00042465,120]
[421670555,1778035883000,-338.86642309,0.00042465,120]
[421670542,1778035883000,-1000.0,0.00042454,30]
[421670543,1778035883000,-977.06578461,0.00042454,60]
[421670527,1778035883000,-1280.88388878,0.00042454,120]
[421670521,1778035883000,-187.78006525,0.00042454,120]
[421670524,1778035883000,-187.78006525,0.00042454,120]
[421670528,1778035883000,-196.59114265,0.00042454,30]
[421670536,1778035883000,-187.78006525,0.00042454,120]
[421670537,1778035883000,-174.61919141,0.00042454,30]
[421670531,1778035883000,-151.0,0.00042454,30]
[421670525,1778035883000,-1191.11104075,0.00042454,30]
[421670534,1778035883000,-174.61919141,0.00042454,30]
[421670538,1778035883000,-250.6297701,0.00042454,60]
[421670532,1778035883000,-151.0,0.00042454,60]
[421670535,1778035883000,-181.08010149,0.00042454,60]
[421670539,1778035883000,-151.0,0.00042454,30]
[421670533,1778035883000,-151.0,0.00042454,120]
[421670540,1778035883000,-151.0,0.00042454,60]
[421670562,1778035896000,-173.75782009,0.00010614,2]
[421670563,1778035922000,1440.85144441,0.0003,120]
[421670569,1778036316000,670.03,0.00027535,120]
[421670568,1778036316000,670.03,0.00025241,120]
[421670570,1778036403000,450.0,0.00023697,30]
[421670589,1778036486000,-300.0,0.00013931,2]
[421670587,1778036486000,-300.0,0.00013931,2]
[421670586,1778036486000,-300.0,0.00013931,2]
[421670585,1778036486000,-500.0,0.00013698,2]
[421670592,1778036486000,-500.0,0.00014158,2]
[421670584,1778036486000,-500.0,0.00013698,2]
[421670583,1778036486000,-500.0,0.00013698,2]
[421670582,1778036486000,-500.0,0.00013698,2]
[421670581,1778036486000,-478.0,0.00013698,2]
[421670575,1778036486000,-500.0,0.00013698,2]
[421670580,1778036486000,-500.0,0.00013698,2]
[421670579,1778036486000,-500.0,0.00013698,2]
[421670577,1778036486000,-500.0,0.00013698,2]
[421670576,1778036486000,-500.0,0.00013698,2]
[421670572,1778036486000,-250.0,0.00013698,2]
[421670573,1778036486000,-500.0,0.00013698,2]
[421670574,1778036486000,-500.0,0.00013698,2]
[421670571,1778036486000,-152.42623429,0.00013598,2]
[421670590,1778036486000,-250.0,0.00014,2]
[421670578,1778036486000,-500.0,0.00013698,2]
[421670591,1778036486000,-250.0,0.00014102,2]
[421670602,1778036486000,-250.0,0.00015067,2]
[421670595,1778036486000,-1205.88,0.00014794,2]
[421670588,1778036486000,-300.0,0.00013931,2]
[421670611,1778036486000,-350.0,0.00018,2]
[421670613,1778036486000,-5438.41,0.00018016,2]
[421670610,1778036486000,-250.0,0.00017685,2]
[421670609,1778036486000,-217.24,0.00017259,2]
[421670608,1778036486000,-217.24,0.00016509,2]
[421670606,1778036486000,-217.24,0.00015758,2]
[421670605,1778036486000,-162.55277151,0.00015697,2]
[421670604,1778036486000,-160.0,0.00015697,2]
[421670607,1778036486000,-300.0,0.00016,2]
[421670600,1778036486000,-9999.99,0.00014794,2]
[421670601,1778036486000,-217.24,0.00015008,2]
[421670599,1778036486000,-9999.99,0.00014794,2]
[421670612,1778036486000,-217.24,0.0001801,2]
[421670598,1778036486000,-299.99,0.00014794,2]
[421670597,1778036486000,-9999.99,0.00014794,2]
[421670594,1778036486000,-150.0,0.00014794,2]
[421670593,1778036486000,-217.24,0.00014258,2]
[421670596,1778036486000,-150.99,0.00014794,2]
[421670603,1778036486000,-300.0,0.00015067,2]
[421670628,1778036487000,-151.0,0.00018058,2]
[421670630,1778036487000,-151.0,0.00018058,2]
[421670629,1778036487000,-151.0,0.00018058,2]
[421670631,1778036487000,-151.0,0.00018058,2]
[421670636,1778036487000,-169.32,0.00018058,2]
[421670635,1778036487000,-151.0,0.00018058,2]
[421670632,1778036487000,-151.0,0.00018058,2]
[421670633,1778036487000,-151.0,0.00018058,2]
[421670627,1778036487000,-151.0,0.00018058,2]
[421670634,1778036487000,-151.0,0.00018058,2]
[421670626,1778036487000,-151.0,0.00018058,2]
[421670615,1778036487000,-169.75,0.00018036,2]
[421670624,1778036487000,-151.0,0.00018058,2]
[421670623,1778036487000,-151.0,0.00018058,2]
[421670625,1778036487000,-151.0,0.00018058,2]
[421670621,1778036487000,-151.0,0.00018058,2]
[421670620,1778036487000,-151.0,0.00018058,2]
[421670617,1778036487000,-151.0,0.00018058,2]
[421670618,1778036487000,-151.0,0.00018058,2]
[421670619,1778036487000,-151.0,0.00018058,2]
[421670638,1778036487000,-2000.0,0.00018123,2]
[421670616,1778036487000,-151.0,0.00018058,2]
[421670622,1778036487000,-151.0,0.00018058,2]
[421670640,1778036487000,-240.344,0.00018425,2]
[421670614,1778036487000,-3550.33,0.00018027,2]
[421670639,1778036487000,-670.03,0.00018357,2]
[421670637,1778036487000,-2500.0,0.00018067,2]
[421670662,1778036487000,-352.0,0.0002,2]
[421670663,1778036487000,-400.0,0.0002,2]
[421670661,1778036487000,-200.0,0.00019995,2]
[421670660,1778036487000,-169.75,0.00019934,2]
[421670659,1778036487000,-450.0,0.00019683,2]
[421670658,1778036487000,-297.2,0.00019605,2]
[421670657,1778036487000,-217.24,0.0001951,2]
[421670656,1778036487000,-169.75,0.00018985,2]
[421670654,1778036487000,-1852.42,0.00018506,2]
[421670653,1778036487000,-1268.0,0.00018482,2]
[421670651,1778036487000,-624.0,0.00018482,2]
[421670664,1778036487000,-217.24,0.00020261,2]
[421670652,1778036487000,-417.0,0.00018482,2]
[421670655,1778036487000,-217.24,0.0001876,2]
[421670645,1778036487000,-150.0,0.00018482,2]
[421670643,1778036487000,-250.0,0.00018482,2]
[421670641,1778036487000,-500.0,0.00018433,2]
[421670644,1778036487000,-265.836,0.00018482,2]
[421670642,1778036487000,-150.294,0.00018482,2]
[421670647,1778036487000,-150.0,0.00018482,2]
[421670649,1778036487000,-6043.0,0.00018482,2]
[421670648,1778036487000,-925.0,0.00018482,2]
[421670650,1778036487000,-3625.0,0.00018482,2]
[421670646,1778036487000,-150.0,0.00018482,2]
[421670677,1778036488000,-1268.0,0.00021482,2]
[421670686,1778036488000,-182.6264415,0.00022258,2]
[421670684,1778036488000,-320.0,0.00022079,2]
[421670685,1778036488000,-152.42623428,0.00022165,2]
[421670682,1778036488000,-450.0,0.00022,2]
[421670683,1778036488000,-7171.0,0.00022,2]
[421670681,1778036488000,-352.0,0.00022,2]
[421670679,1778036488000,-255.0,0.0002183,2]
[421670680,1778036488000,-5000.0,0.00021918,2]
[421670678,1778036488000,-217.24,0.00021762,2]
[421670669,1778036488000,-450.0,0.00021053,2]
[421670676,1778036488000,-417.0,0.00021482,2]
[421670675,1778036488000,-624.0,0.00021482,2]
[421670674,1778036488000,-3625.0,0.00021482,2]
[421670672,1778036488000,-150.0,0.00021482,2]
[421670671,1778036488000,-150.0,0.00021482,2]
[421670668,1778036488000,-217.24,0.00021011,2]
[421670670,1778036488000,-150.0,0.00021482,2]
[421670667,1778036488000,-352.0,0.00021,2]
[421670666,1778036488000,-670.03,0.00020651,2]
[421670665,1778036488000,-2000.0,0.00020389,2]
[421670687,1778036488000,-34918.11842064,0.00022265,2]
[421670673,1778036488000,-925.0,0.00021482,2]
[421670689,1778036488000,-417.65120364,0.00022305,2]
[421670690,1778036488000,-518.72617076,0.00022305,2]
[421670691,1778036488000,-500.0,0.00022305,2]
[421670713,1778036488000,-500.0,0.00022305,2]
[421670688,1778036488000,-150.0,0.00022265,2]
[421670712,1778036488000,-500.0,0.00022305,2]
[421670711,1778036488000,-500.0,0.00022305,2]
[421670710,1778036488000,-500.0,0.00022305,2]
[421670708,1778036488000,-500.0,0.00022305,2]
[421670709,1778036488000,-500.0,0.00022305,2]
[421670707,1778036488000,-500.0,0.00022305,2]
[421670706,1778036488000,-500.0,0.00022305,2]
[421670704,1778036488000,-500.0,0.00022305,2]
[421670705,1778036488000,-297.95991443,0.00022305,2]
[421670714,1778036488000,-500.0,0.00022305,2]
[421670702,1778036488000,-500.0,0.00022305,2]
[421670703,1778036488000,-500.0,0.00022305,2]
[421670694,1778036488000,-500.0,0.00022305,2]
[421670693,1778036488000,-500.0,0.00022305,2]
[421670696,1778036488000,-500.0,0.00022305,2]
[421670695,1778036488000,-500.0,0.00022305,2]
[421670692,1778036488000,-500.0,0.00022305,2]
[421670699,1778036488000,-500.0,0.00022305,2]
[421670698,1778036488000,-500.0,0.00022305,2]
[421670700,1778036488000,-500.0,0.00022305,2]
[421670701,1778036488000,-500.0,0.00022305,2]
[421670697,1778036488000,-500.0,0.00022305,2]
[421670727,1778036489000,-500.0,0.00022305,2]
[421670731,1778036489000,-500.0,0.00022305,2]
[421670729,1778036489000,-200.4163343,0.00022305,2]
[421670732,1778036489000,-500.0,0.00022305,2]
[421670730,1778036489000,-500.0,0.00022305,2]
[421670726,1778036489000,-500.0,0.00022305,2]
[421670728,1778036489000,-500.0,0.00022305,2]
[421670725,1778036489000,-500.0,0.00022305,2]
[421670724,1778036489000,-500.0,0.00022305,2]
[421670720,1778036489000,-500.0,0.00022305,2]
[421670722,1778036489000,-500.0,0.00022305,2]
[421670721,1778036489000,-500.0,0.00022305,2]
[421670733,1778036489000,-500.0,0.00022305,2]
[421670717,1778036489000,-500.0,0.00022305,2]
[421670718,1778036489000,-500.0,0.00022305,2]
[421670719,1778036489000,-500.0,0.00022305,2]
[421670716,1778036489000,-500.0,0.00022305,2]
[421670715,1778036489000,-500.0,0.00022305,2]
[421670723,1778036489000,-500.0,0.00022305,2]
[421670735,1778036489000,-500.0,0.00022305,2]
[421670751,1778036489000,-1009.26727382,0.00022305,2]
[421670737,1778036489000,-500.0,0.00022305,2]
[421670736,1778036489000,-500.0,0.00022305,2]
[421670756,1778036489000,-1009.26727382,0.00022305,2]
[421670755,1778036489000,-1009.26727382,0.00022305,2]
[421670754,1778036489000,-1009.26727382,0.00022305,2]
[421670753,1778036489000,-1009.26727382,0.00022305,2]
[421670750,1778036489000,-1009.26727382,0.00022305,2]
[421670747,1778036489000,-500.0,0.00022305,2]
[421670749,1778036489000,-1009.26727382,0.00022305,2]
[421670748,1778036489000,-1009.26727382,0.00022305,2]
[421670752,1778036489000,-1009.26727382,0.00022305,2]
[421670745,1778036489000,-500.0,0.00022305,2]
[421670744,1778036489000,-500.0,0.00022305,2]
[421670742,1778036489000,-500.0,0.00022305,2]
[421670743,1778036489000,-500.0,0.00022305,2]
[421670740,1778036489000,-500.0,0.00022305,2]
[421670741,1778036489000,-500.0,0.00022305,2]
[421670739,1778036489000,-500.0,0.00022305,2]
[421670738,1778036489000,-500.0,0.00022305,2]
[421670746,1778036489000,-500.0,0.00022305,2]
[421670734,1778036489000,-500.0,0.00022305,2]
[421670763,1778036490000,-1009.26727382,0.00022305,2]
[421670759,1778036490000,-1009.26727382,0.00022305,2]
[421670761,1778036490000,-1009.26727382,0.00022305,2]
[421670757,1778036490000,-1009.26727382,0.00022305,2]
[421670760,1778036490000,-1009.26727382,0.00022305,2]
[421670758,1778036490000,-1009.26727382,0.00022305,2]
[421670765,1778036490000,-1009.26727382,0.00022305,2]
[421670762,1778036490000,-1009.26727382,0.00022305,2]
[421670766,1778036490000,-500.0,0.00022306,2]
[421670776,1778036490000,-807069.00294758,0.00022307,2]
[421670767,1778036490000,-500.0,0.00022306,2]
[421670769,1778036490000,-538.04025292,0.00022306,2]
[421670771,1778036490000,-500.0,0.00022306,2]
[421670770,1778036490000,-373.44326744,0.00022306,2]
[421670768,1778036490000,-500.0,0.00022306,2]
[421670772,1778036490000,-468.86487795,0.00022306,2]
[421670773,1778036490000,-500.0,0.00022306,2]
[421670774,1778036490000,-500.0,0.00022306,2]
[421670775,1778036490000,-500.0,0.00022306,2]
[421670764,1778036490000,-1009.26727382,0.00022305,2]
[421670779,1778036792000,-467.50087768,0.00013498,2]
[421670782,1778036965000,-300.0,0.00013836,2]
[421670781,1778036965000,-32.49912232,0.00013498,2]
[421670783,1778036965000,-214.44302788,0.00014173,2]
[421670809,1778037034000,-417.0,0.00019213,2]
[421670808,1778037034000,-1221.0,0.00019213,2]
[421670810,1778037034000,-4957.233,0.00019213,2]
[421670812,1778037034000,-299.99,0.00019302,4]
[421670814,1778037034000,-217.0,0.0002,2]
[421670815,1778037034000,-183.0,0.0002,2]
[421670811,1778037034000,-153.12137068,0.00019302,2]
[421670813,1778037034000,-9999.99,0.00019302,2]
[421670816,1778037034000,-236.0,0.0002,2]
[421670818,1778037034000,-250.0,0.0002,2]
[421670828,1778037034000,-200.0,0.00020182,2]
[421670817,1778037034000,-707.0,0.0002,2]
[421670826,1778037034000,-150.0,0.00020071,2]
[421670827,1778037034000,-4771.9,0.00020182,2]
[421670819,1778037034000,-348.0,0.0002,2]
[421670822,1778037034000,-150.0,0.00020071,2]
[421670823,1778037034000,-150.0,0.00020071,2]
[421670807,1778037034000,-160.0,0.00018925,2]
[421670806,1778037034000,-124.43846401,0.00018925,2]
[421670802,1778037034000,-149.4143075,0.00017029,2]
[421670803,1778037034000,-100.5856925,0.00017029,2]
[421670786,1778037034000,-35.55697212,0.00014173,2]
[421670787,1778037034000,-1200.0,0.00014847,2]
[421670794,1778037034000,-61.45015814,0.00014848,2]
[421670790,1778037034000,-605.6769166,0.00014848,2]
[421670791,1778037034000,-424.80406011,0.00014848,2]
[421670789,1778037034000,-300.0,0.00014847,2]
[421670792,1778037034000,-600.0,0.00014848,2]
[421670788,1778037034000,-300.0,0.00014847,2]
[421670820,1778037034000,-154.0,0.0002,2]
[421670793,1778037034000,-250.0,0.00014848,2]
[421670797,1778037034000,-300.0,0.00015589,2]
[421670805,1778037034000,-38.1143075,0.00018925,2]
[421670801,1778037034000,-250.0,0.00017016,2]
[421670799,1778037034000,-27.70755709,0.00016153,2]
[421670795,1778037034000,-238.54984186,0.00014848,2]
[421670798,1778037034000,-324.43566341,0.0001559,2]
[421670800,1778037034000,-126.38244291,0.00016153,2]
[421670804,1778037034000,-413.3,0.0001841,2]
[421670796,1778037034000,-300.0,0.00015589,2]
[421670824,1778037034000,-150.50603525,0.00020071,2]
[421670821,1778037034000,-150.0,0.00020071,2]
[421670825,1778037034000,-150.0,0.00020071,2]
[421670869,1778037034000,-348.0,0.00021,2]
[421670872,1778037034000,-166.66,0.00021013,2]
[421670874,1778037034000,-185.08,0.00021083,2]
[421670873,1778037034000,-181.46,0.00021083,2]
[421670876,1778037034000,-150.0,0.00021186,4]
[421670880,1778037034000,-153.12137068,0.00021375,2]
[421670875,1778037034000,-4000.0,0.00021168,2]
[421670884,1778037034000,-633.12665658,0.00021482,2]
[421670868,1778037034000,-250.0,0.00021,2]
[421670877,1778037034000,-150.0,0.00021186,4]
[421670882,1778037034000,-2829.46105492,0.00021482,2]
[421670878,1778037034000,-1000.0,0.00021231,2]
[421670881,1778037034000,-11889.06004923,0.00021482,2]
[421670879,1778037034000,-150.0,0.00021372,4]
[421670886,1778037034000,-4000.0,0.00021684,2]
[421670888,1778037034000,-166.66,0.00021706,2]
[421670887,1778037034000,-300.0,0.000217,7]
[421670889,1778037034000,-150.0,0.00021744,4]
[421670885,1778037034000,-150.0,0.00021558,4]
[421670871,1778037034000,-150.0,0.00021,4]
[421670883,1778037034000,-4745.83293209,0.00021482,2]
[421670863,1778037034000,-236.0,0.00021,2]
[421670832,1778037034000,-200.0,0.00020253,2]
[421670851,1778037034000,-150.0,0.00020812,2]
[421670833,1778037034000,-150.0,0.00020257,4]
[421670835,1778037034000,-297.2,0.00020424,2]
[421670836,1778037034000,-150.0,0.00020443,4]
[421670830,1778037034000,-673.9,0.00020247,2]
[421670834,1778037034000,-413.3,0.00020381,2]
[421670845,1778037034000,-208.0,0.0002065,2]
[421670849,1778037034000,-500.0,0.00020729,2]
[421670838,1778037034000,-150.0,0.00020454,2]
[421670841,1778037034000,-20113.48,0.00020514,2]
[421670847,1778037034000,-4000.0,0.00020651,2]
[421670855,1778037034000,-150.0,0.0002091,4]
[421670853,1778037034000,-150.0,0.00020815,4]
[421670860,1778037034000,-183.0,0.00021,2]
[421670870,1778037034000,-154.0,0.00021,2]
[421670857,1778037034000,-217.0,0.00021,2]
[421670842,1778037034000,-150.0,0.00020629,4]
[421670865,1778037034000,-707.0,0.00021,2]
[421670921,1778037035000,-500.0,0.000223,2]
[421670914,1778037035000,-500.0,0.000223,2]
[421670915,1778037035000,-500.0,0.000223,2]
[421670922,1778037035000,-500.0,0.000223,2]
[421670913,1778037035000,-310.88443494,0.000223,2]
[421670910,1778037035000,-417.0,0.00022213,2]
[421670917,1778037035000,-500.0,0.000223,2]
[421670912,1778037035000,-500.0,0.000223,2]
[421670916,1778037035000,-500.0,0.000223,2]
[421670928,1778037035000,-500.0,0.000223,2]
[421670924,1778037035000,-500.0,0.000223,2]
[421670923,1778037035000,-500.0,0.000223,2]
[421670935,1778037035000,-500.0,0.000223,2]
[421670934,1778037035000,-500.0,0.000223,2]
[421670927,1778037035000,-500.0,0.000223,2]
[421670926,1778037035000,-500.0,0.000223,2]
[421670925,1778037035000,-500.0,0.000223,2]
[421670929,1778037035000,-500.0,0.000223,2]
[421670911,1778037035000,-1384.48459962,0.00022227,2]
[421670918,1778037035000,-500.0,0.000223,2]
[421670919,1778037035000,-500.0,0.000223,2]
[421670897,1778037035000,-250.0,0.00022,2]
[421670905,1778037035000,-42763.7769,0.00022206,2]
[421670895,1778037035000,-236.0,0.00022,2]
[421670932,1778037035000,-500.0,0.000223,2]
[421670896,1778037035000,-707.0,0.00022,2]
[421670890,1778037035000,-600.0,0.000218,7]
[421670893,1778037035000,-217.0,0.00022,2]
[421670892,1778037035000,-150.0,0.0002193,4]
[421670894,1778037035000,-183.0,0.00022,2]
[421670891,1778037035000,-900.0,0.000219,7]
[421670909,1778037035000,-1221.0,0.00022213,2]
[421670899,1778037035000,-816.0,0.00022,2]
[421670898,1778037035000,-348.0,0.00022,2]
[421670901,1778037035000,-150.0,0.00022116,4]
[421670904,1778037035000,-228.2615,0.00022206,2]
[421670900,1778037035000,-154.0,0.00022,2]
[421670902,1778037035000,-153.12137068,0.00022196,2]
[421670907,1778037035000,-5000.0,0.00022207,2]
[421670908,1778037035000,-2500.0,0.00022207,2]
[421670903,1778037035000,-4000.0,0.000222,2]
[421670906,1778037035000,-6793.3795,0.00022206,2]
[421670920,1778037035000,-500.0,0.000223,2]
[421670930,1778037035000,-500.0,0.000223,2]
[421670973,1778037035000,-150.0,0.00022307,2]
[421670933,1778037035000,-500.0,0.000223,2]
[421670960,1778037035000,-500.0,0.00022306,2]
[421670962,1778037035000,-500.0,0.00022306,2]
[421670963,1778037035000,-453.12,0.00022306,2]
[421670961,1778037035000,-500.0,0.00022306,2]
[421670965,1778037035000,-500.0,0.00022306,2]
[421670964,1778037035000,-261.41028721,0.00022306,2]
[421670966,1778037035000,-500.0,0.00022306,2]
[421670969,1778037035000,-500.0,0.00022306,2]
[421670970,1778037035000,-426.62817704,0.00022306,2]
[421670967,1778037035000,-500.0,0.00022306,2]
[421670971,1778037035000,-500.0,0.00022306,2]
[421670972,1778037035000,-200.0,0.00022307,2]
[421670974,1778037035000,-200.0,0.00022307,2]
[421670977,1778037035000,-485.4185,0.00022307,2]
[421670976,1778037035000,-605.6100191,0.00022307,2]
[421670978,1778037035000,-1272.80387378,0.00022307,2]
[421670975,1778037035000,-112263.5428879,0.00022307,2]
[421670979,1778037035000,-3403.37146852,0.00022307,2]
[421670931,1778037035000,-500.0,0.000223,2]
[421670954,1778037035000,-500.0,0.00022306,2]
[421670955,1778037035000,-500.0,0.00022306,2]
[421670968,1778037035000,-228.20541457,0.00022306,2]
[421670952,1778037035000,-104048.7479816,0.00022302,2]
[421670936,1778037035000,-500.0,0.000223,2]
[421670953,1778037035000,-3331.36895544,0.00022305,2]
[421670938,1778037035000,-500.0,0.000223,2]
[421670939,1778037035000,-310.63288371,0.000223,2]
[421670940,1778037035000,-500.0,0.000223,2]
[421670937,1778037035000,-500.0,0.000223,2]
[421670943,1778037035000,-500.0,0.000223,2]
[421670945,1778037035000,-500.0,0.000223,2]
[421670947,1778037035000,-500.0,0.000223,2]
[421670946,1778037035000,-500.0,0.000223,2]
[421670944,1778037035000,-500.0,0.000223,2]
[421670941,1778037035000,-500.0,0.000223,2]
[421670942,1778037035000,-500.0,0.000223,2]
[421670949,1778037035000,-150.0,0.00022301,4]
[421670958,1778037035000,-500.0,0.00022306,2]
[421670948,1778037035000,-150.0,0.00022301,4]
[421670959,1778037035000,-302.60699763,0.00022306,2]
[421670950,1778037035000,-150.0,0.00022301,4]
[421670956,1778037035000,-500.0,0.00022306,2]
[421670951,1778037035000,-150.0,0.00022301,4]
[421670957,1778037035000,-500.0,0.00022306,2]
[421671015,1778037038000,-501.10461545,0.00022373,2]
[421671016,1778037038000,-166.66,0.000224,2]
[421671020,1778037038000,-200.0,0.0002253,2]
[421671012,1778037038000,-500.0,0.00022373,2]
[421671022,1778037038000,-2000.0,0.00022654,2]
[421671014,1778037038000,-500.0,0.00022373,2]
[421671011,1778037038000,-500.0,0.00022373,2]
[421671010,1778037038000,-500.0,0.00022373,2]
[421671019,1778037038000,-217.24,0.00022512,2]
[421671021,1778037038000,-200.0,0.0002253,2]
[421671018,1778037038000,-165.06992909,0.00022407,2]
[421671033,1778037038000,-236.0,0.00023,2]
[421671013,1778037038000,-500.45374323,0.00022373,2]
[421671024,1778037038000,-1000.0,0.00022921,2]
[421671034,1778037038000,-707.0,0.00023,2]
[421671035,1778037038000,-250.0,0.00023,2]
[421671030,1778037038000,-352.0,0.00023,2]
[421671023,1778037038000,-4000.0,0.00022717,2]
[421671032,1778037038000,-183.0,0.00023,2]
[421671029,1778037038000,-258.97,0.00022977,2]
[421671028,1778037038000,-670.03,0.00022946,2]
[421671031,1778037038000,-217.0,0.00023,2]
[421671008,1778037038000,-500.0,0.00022373,2]
[421671017,1778037038000,-165.06992909,0.00022407,2]
[421671007,1778037038000,-413.3,0.00022353,2]
[421670986,1778037038000,-500.0,0.00022306,2]
[421671004,1778037038000,-1358.36788851,0.00022307,2]
[421670982,1778037038000,-150.0,0.00017445,2]
[421670983,1778037038000,-150.0,0.00018841,2]
[421670981,1778037038000,-150.0,0.00016153,2]
[421670985,1778037038000,-500.0,0.00022306,2]
[421670984,1778037038000,-150.0,0.00020348,2]
[421670987,1778037038000,-500.0,0.00022306,2]
[421670988,1778037038000,-500.0,0.00022306,2]
[421670989,1778037038000,-500.0,0.00022306,2]
[421670991,1778037038000,-51526.4290149,0.00022307,2]
[421670992,1778037038000,-16092.3183417,0.00022307,2]
[421670990,1778037038000,-583.39066889,0.00022306,2]
[421671006,1778037038000,-1417294.30092958,0.00022307,2]
[421670993,1778037038000,-561.18196055,0.00022307,2]
[421670995,1778037038000,-254.18043806,0.00022307,2]
[421670996,1778037038000,-307.130001,0.00022307,2]
[421670997,1778037038000,-2000.0,0.00022307,2]
[421670999,1778037038000,-6599.32299721,0.00022307,2]
[421670998,1778037038000,-3153.88746324,0.00022307,2]
[421671009,1778037038000,-500.0,0.00022373,2]
[421671000,1778037038000,-606.96816968,0.00022307,2]
[421671001,1778037038000,-564.0886184,0.00022307,2]
[421671002,1778037038000,-70001.8631633,0.00022307,2]
[421671003,1778037038000,-1094.0,0.00022307,2]
[421671005,1778037038000,-150.0,0.00021976,2]
[421670994,1778037038000,-3486.21131699,0.00022307,2]
[421671027,1778037038000,-1002.53060532,0.00022921,2]
[421671025,1778037038000,-1000.0,0.00022921,2]
[421671036,1778037038000,-348.0,0.00023,2]
[421671078,1778037038000,-500.0,0.00023653,2]
[421671079,1778037038000,-151.0,0.00023653,2]
[421671087,1778037038000,-151.0,0.00023653,2]
[421671095,1778037038000,-151.0,0.00023653,2]
[421671085,1778037038000,-500.0,0.00023653,2]
[421671075,1778037038000,-151.0,0.00023653,2]
[421671089,1778037038000,-151.0,0.00023653,2]
[421671091,1778037038000,-151.0,0.00023653,2]
[421671092,1778037038000,-151.0,0.00023653,2]
[421671108,1778037038000,-151.0,0.00023653,2]
[421671096,1778037038000,-151.0,0.00023653,2]
[421671076,1778037038000,-500.0,0.00023653,2]
[421671112,1778037038000,-151.0,0.00023653,2]
[421671098,1778037038000,-500.0,0.00023653,2]
[421671104,1778037038000,-151.0,0.00023653,2]
[421671102,1778037038000,-500.0,0.00023653,2]
[421671100,1778037038000,-151.0,0.00023653,2]
[421671110,1778037038000,-500.0,0.00023653,2]
[421671115,1778037038000,-151.0,0.00023653,2]
[421671114,1778037038000,-500.0,0.00023653,2]
[421671117,1778037038000,-500.0,0.00023653,2]
[421671119,1778037038000,-151.0,0.00023653,2]
[421671121,1778037038000,-592.53712416,0.00023653,2]
[421671123,1778037038000,-151.0,0.00023653,2]
[421671106,1778037038000,-500.0,0.00023653,2]
[421671081,1778037038000,-500.0,0.00023653,2]
[421671026,1778037038000,-1000.0,0.00022921,2]
[421671077,1778037038000,-151.0,0.00023653,2]
[421671083,1778037038000,-151.0,0.00023653,2]